bitfinex-derivatives/quotes_BNBF0:USTF0_20250617
["timestamp","ask_amount","ask_price","bid_price","bid_amount"]
[1750150655014,0.30450206,656.81,656.63,1.346]
[1750150655413,0.98908831,656.8,656.63,1.346]
[1750150655609,0.98908831,656.79,656.63,1.346]
[1750150655917,0.98643188,656.78,656.63,1.346]
[1750150656113,0.30450206,656.81,656.63,1.346]
[1750150656114,0.98643188,656.77,656.63,1.346]
[1750150656414,0.98643188,656.76,656.63,1.346]
[1750150656614,0.98643188,656.75,656.63,1.346]
[1750150656810,0.98643188,656.74,656.63,1.346]
[1750150657011,0.98643188,656.73,656.63,1.346]
[1750150657311,0.98643188,656.72,656.63,1.346]
[1750150657512,0.30450206,656.81,656.63,1.346]
[1750150657713,0.98570008,656.8,656.63,1.346]
[1750150657916,0.98570008,656.79,656.63,1.346]
[1750150658117,0.98570008,656.78,656.63,1.346]
[1750150658316,0.98570008,656.77,656.63,1.346]
[1750150658517,0.98570008,656.76,656.63,1.346]
[1750150658717,0.98570008,656.75,656.63,1.346]
[1750150658917,0.98570008,656.74,656.63,1.346]
[1750150659217,0.98570008,656.73,656.63,1.346]
[1750150659412,0.98570008,656.72,656.63,1.346]
[1750150659613,0.98570008,656.71,656.63,1.346]
[1750150659815,0.98570008,656.7,656.63,1.346]
[1750150660015,0.98570008,656.69,656.63,1.346]
[1750150660218,0.98570008,656.68,656.63,1.346]
[1750150660426,0.98570008,656.67,656.63,1.346]
[1750150660624,0.98570008,656.8,656.63,1.346]
[1750150660821,0.98570008,656.79,656.63,1.346]
[1750150661016,0.98570008,656.78,656.63,1.346]
[1750150661216,0.98570008,656.77,656.63,1.346]
[1750150661421,0.98570008,656.76,656.63,1.346]
[1750150661616,0.98570008,656.75,656.63,1.346]
[1750150661919,0.98570008,656.74,656.63,1.346]
[1750150662221,0.98570008,656.73,656.63,1.346]
[1750150662420,0.98570008,656.72,656.63,1.346]
[1750150662621,0.98570008,656.71,656.63,1.346]
[1750150662822,0.98570008,656.7,656.63,1.346]
[1750150663118,0.98570008,656.69,656.63,1.346]
[1750150663322,0.98498176,656.68,656.63,1.346]
[1750150663518,0.98498176,656.8,656.63,1.346]
[1750150663727,0.98497981,656.79,656.63,1.346]
[1750150663920,0.98497981,656.78,656.63,1.346]
[1750150664118,0.98497981,656.77,656.63,1.346]
[1750150664323,0.98497981,656.76,656.63,1.346]
[1750150664623,0.98497981,656.75,656.63,1.346]
[1750150664824,0.98497981,656.74,656.63,1.346]
[1750150665025,0.98497981,656.73,656.63,1.346]
[1750150665222,0.98497981,656.72,656.63,1.346]
[1750150665525,0.98497981,656.71,656.63,1.346]
[1750150665727,0.98497981,656.8,656.63,1.346]
[1750150665922,0.98497981,656.79,656.63,1.346]
[1750150666127,0.98497981,656.78,656.63,1.346]
[1750150666324,0.30450206,656.81,656.63,1.346]
[1750150666627,0.98507831,656.8,656.63,1.346]
[1750150666824,0.98507831,656.79,656.63,1.346]
[1750150667123,0.98507831,656.79,656.52,0.999]
[1750150667124,0.98523834,656.78,656.52,0.999]
[1750150667331,0.98523834,656.77,656.52,0.999]
[1750150667528,0.98523834,656.76,656.52,0.999]
[1750150667728,0.98523834,656.75,656.52,0.999]
[1750150667929,0.98523834,656.74,656.52,0.999]
[1750150668228,0.98523834,656.73,656.52,0.999]
[1750150668428,0.98523834,656.8,656.52,0.999]
[1750150668629,0.98523834,656.79,656.52,0.999]
[1750150668929,0.98523834,656.78,656.52,0.999]
[1750150669127,0.30450206,656.81,656.52,0.999]
[1750150669329,0.98539927,656.8,656.52,0.999]
[1750150669629,0.30450206,656.81,656.52,0.999]
[1750150669630,0.98539927,656.79,656.52,0.999]
[1750150669826,0.98539927,656.78,656.52,0.999]
[1750150670024,0.98539927,656.77,656.52,0.999]
[1750150670228,0.98539927,656.76,656.52,0.999]
[1750150670430,0.98539927,656.75,656.52,0.999]
[1750150670734,0.30450206,656.81,656.52,0.999]
[1750150670735,0.98539927,656.74,656.52,0.999]
[1750150670933,0.98539927,656.8,656.52,0.999]
[1750150671125,0.98539927,656.79,656.52,0.999]
[1750150671328,0.98539927,656.78,656.52,0.999]
[1750150671527,0.98539927,656.77,656.52,0.999]
[1750150671727,0.98539927,656.76,656.52,0.999]
[1750150671926,0.98539927,656.75,656.52,0.999]
[1750150672132,0.98539927,656.74,656.52,0.999]
[1750150672332,0.98539927,656.8,656.52,0.999]
[1750150672530,0.98539927,656.79,656.52,0.999]
[1750150672728,0.98539927,656.78,656.52,0.999]
[1750150672927,0.30450206,656.81,656.52,0.999]
[1750150672928,0.98539927,656.77,656.52,0.999]
[1750150673132,0.30450206,656.81,656.52,0.999]
[1750150673133,0.98539927,656.76,656.52,0.999]
[1750150673333,0.98539927,656.75,656.52,0.999]
[1750150673533,0.98539927,656.74,656.52,0.999]
[1750150673834,0.98539927,656.73,656.52,0.999]
[1750150674030,0.85984888,656.81,656.52,0.999]
[1750150674031,0.98539927,656.8,656.52,0.999]
[1750150674333,0.98539927,656.79,656.49,1.214]
[1750150674530,0.98539927,656.78,656.49,1.214]
[1750150674728,0.98539927,656.77,656.49,1.214]
[1750150674935,0.98586237,656.76,656.49,1.214]
[1750150675234,0.98586237,656.8,656.49,1.214]
[1750150675529,0.98586237,656.79,656.49,1.214]
[1750150675833,0.98586237,656.78,656.49,1.214]
[1750150676035,0.98586237,656.8,656.49,1.214]
[1750150676230,0.98586237,656.79,656.49,1.214]
[1750150676430,0.98586237,656.78,656.49,1.214]
[1750150676633,0.98586237,656.8,656.49,1.214]
[1750150676830,0.98586237,656.79,656.49,1.214]
[1750150677033,0.9863962,656.8,656.49,1.214]
[1750150677231,0.9863962,656.79,656.49,1.214]
[1750150677536,0.9863962,656.78,656.5,0.926]
[1750150677834,0.9863962,656.77,656.5,0.926]
[1750150678133,0.9863962,656.8,656.5,0.926]
[1750150678334,0.9863962,656.79,656.5,0.926]
[1750150678735,0.9863962,656.8,656.5,0.926]
[1750150679633,0.30450206,656.81,656.5,0.926]
[1750150682534,1.84818771,656.81,656.5,0.926]
[1750150682741,0.30450206,656.81,656.5,0.926]
[1750150687841,1.29215312,656.81,656.5,0.926]
[1750150688034,0.30450206,656.81,656.5,0.926]
[1750150688234,0.9882144,656.8,656.5,0.926]
[1750150688637,0.30450206,656.81,656.5,0.926]
[1750150692144,0.30450206,656.81,656.51,1.32]
[1750150693442,1.84979305,656.81,656.51,1.32]
[1750150693746,0.30450206,656.81,656.51,1.32]
[1750150698343,1.85284904,656.81,656.51,1.32]
[1750150698550,0.30450206,656.81,656.51,1.32]
[1750150699250,0.99039316,656.8,656.51,1.32]
[1750150699759,0.99039316,656.79,656.51,1.32]
[1750150699945,0.99039316,656.78,656.51,1.32]
[1750150700150,0.99039316,656.77,656.51,2.325]
[1750150700351,0.30450206,656.81,656.51,2.325]
[1750150700352,0.99039316,656.76,656.51,2.325]
[1750150700555,0.99106433,656.8,656.51,2.325]
[1750150700749,0.99106433,656.79,656.51,2.325]
[1750150700950,0.99106433,656.78,656.51,2.325]
[1750150701146,0.99106433,656.77,656.51,2.325]
[1750150701348,0.99106433,656.76,656.51,2.325]
[1750150701549,0.99106433,656.8,656.51,2.325]
[1750150701750,0.99106433,656.79,656.51,2.325]
[1750150701953,0.99106433,656.78,656.51,2.325]
[1750150702150,0.99106433,656.77,656.51,2.325]
[1750150702350,0.99106433,656.76,656.51,2.325]
[1750150702647,0.99106433,656.75,656.51,2.325]
[1750150702948,0.99106433,656.74,656.51,2.325]
[1750150703247,0.30450206,656.81,656.51,2.325]
[1750150703452,0.99170698,656.8,656.51,2.325]
[1750150703652,0.99170698,656.79,656.51,2.325]
[1750150703949,0.99170698,656.78,656.51,2.325]
[1750150704146,0.99170698,656.77,656.51,2.325]
[1750150704351,0.99170698,656.76,656.51,2.325]
[1750150704546,0.99170698,656.75,656.51,2.325]
[1750150704750,0.99170698,656.74,656.51,2.325]
[1750150704950,0.99170698,656.73,656.51,2.325]
[1750150705153,0.99170698,656.72,656.51,2.325]
[1750150705352,0.99170698,656.71,656.51,2.325]
[1750150705649,0.99170698,656.7,656.51,2.325]
[1750150705951,0.99170698,656.69,656.51,2.325]
[1750150706148,0.99257091,656.68,656.51,2.325]
[1750150706346,0.99257091,656.67,656.51,2.325]
[1750150706546,0.99257091,656.66,656.51,2.325]
[1750150706752,0.99257091,656.65,656.51,2.325]
[1750150706951,0.99257091,656.78,656.51,2.325]
[1750150707148,0.99257091,656.77,656.51,2.325]
[1750150707348,0.99257091,656.76,656.51,2.325]
[1750150707549,0.99257091,656.75,656.51,2.325]
[1750150708155,0.30450206,656.81,656.51,2.325]
[1750150710360,0.30450206,656.81,656.51,1.005]
[1750150711459,0.30450206,656.81,656.13,2.14964027]
[1750150713058,0.30450206,656.81,656.15,1.13764027]
[1750150713460,0.30450206,656.81,656.16,1.13764027]
[1750150713653,0.30450206,656.81,656.15,1.13764027]
[1750150713859,0.30450206,656.81,656.17,1.204]
[1750150714562,0.30450206,656.81,656.18,0.943]
[1750150715457,0.99264457,656.8,656.18,0.943]
[1750150715655,0.99264457,656.79,656.18,0.943]
[1750150715957,0.30450206,656.81,656.18,0.943]
[1750150716255,0.99259099,656.8,656.18,0.943]
[1750150716461,0.99259099,656.79,656.18,0.943]
[1750150716662,0.99259099,656.78,656.18,0.943]
[1750150716964,0.99259099,656.77,656.19,0.941]
[1750150717162,1.85004004,656.79,656.19,0.941]
[1750150717163,0.99259099,656.76,656.19,0.941]
[1750150717462,0.99259099,656.75,656.19,0.941]
[1750150717760,0.99259099,656.74,656.19,0.941]
[1750150717962,0.99259099,656.73,656.19,0.941]
[1750150718160,1.85004004,656.74,656.19,0.941]
[1750150718368,0.99596177,656.73,656.19,0.941]
[1750150718660,0.99596177,656.72,656.19,0.941]
[1750150718965,0.99597585,656.71,656.19,0.941]
[1750150719165,0.99597585,656.7,656.19,0.941]
[1750150719462,0.99597585,656.69,656.19,0.941]
[1750150719660,0.99597585,656.68,656.19,0.941]
[1750150719865,0.99597585,656.67,656.19,0.941]
[1750150720064,0.99597585,656.66,656.19,0.941]
[1750150720365,0.99597585,656.65,656.19,0.941]
[1750150720666,0.99597585,656.64,656.19,2.07864027]
[1750150720965,0.99607232,656.63,656.19,2.07864027]
[1750150721164,0.99607232,656.62,656.21,1.13764027]
[1750150721466,0.99607232,656.61,656.21,1.13764027]
[1750150721761,0.99607232,656.6,656.21,1.13764027]
[1750150721964,2.84673914,656.69,656.2,1.13764027]
[1750150722165,2.84687595,656.68,656.2,1.13764027]
[1750150722364,2.84687595,656.67,656.2,1.13764027]
[1750150722565,2.84687595,656.66,656.2,1.13764027]
[1750150722765,2.84687595,656.65,656.2,1.13764027]
[1750150723068,2.84687595,656.64,656.2,1.13764027]
[1750150723266,2.84687595,656.63,656.2,1.13764027]
[1750150723563,0.99620913,656.62,656.2,1.13764027]
[1750150723765,0.99620913,656.61,656.2,1.13764027]
[1750150724066,0.99620913,656.6,656.23,1.13764027]
[1750150724367,0.99647033,656.59,656.23,1.13764027]
[1750150724569,0.99646939,656.58,656.23,1.13764027]
[1750150724762,0.99646939,656.57,656.23,1.13764027]
[1750150724966,2.84787442,656.75,656.23,1.13764027]
[1750150725166,2.84787442,656.74,656.23,1.13764027]
[1750150725463,2.84787442,656.73,656.23,1.13764027]
[1750150725669,2.84787442,656.72,656.23,1.13764027]
[1750150725969,2.84787442,656.71,656.22,1.13764027]
[1750150726169,2.84787442,656.7,656.22,1.13764027]
[1750150726371,2.84787442,656.69,656.22,1.13764027]
[1750150726566,2.84787442,656.68,656.22,1.13764027]
[1750150726767,2.84787442,656.67,656.22,1.13764027]
[1750150726972,2.84787442,656.66,656.22,1.13764027]
[1750150727166,2.84787442,656.65,656.22,1.13764027]
[1750150727370,2.84787442,656.64,656.22,1.13764027]
[1750150727572,2.84801073,656.63,656.22,1.13764027]
[1750150727768,2.84801073,656.62,656.23,1.13764027]
[1750150727974,2.84801073,656.61,656.24,1.13764027]
[1750150728174,1.55643798,656.6,656.24,1.13764027]
[1750150728375,0.99646939,656.59,656.24,1.13764027]
[1750150728577,0.99646939,656.58,656.24,1.13764027]
[1750150728871,0.99646939,656.57,656.25,1.13764027]
[1750150729072,0.99646939,656.56,656.24,1.13764027]
[1750150729276,0.99646939,656.55,656.24,1.13764027]
[1750150729474,0.99646939,656.54,656.25,1.13764027]
[1750150729676,2.84828777,656.71,656.25,1.13764027]
[1750150729874,2.84828777,656.7,656.25,1.13764027]
[1750150730177,2.84828777,656.69,656.24,1.13764027]
[1750150730378,2.8484114,656.68,656.24,1.13764027]
[1750150730579,2.8484114,656.67,656.24,1.13764027]
[1750150730778,2.8484114,656.66,656.24,1.13764027]
[1750150731078,2.8484114,656.65,656.24,1.13764027]
[1750150731273,2.8484114,656.64,656.24,1.13764027]
[1750150731478,2.8484114,656.63,656.24,1.13764027]
[1750150731778,2.8484114,656.62,656.25,1.13764027]
[1750150732075,2.8484114,656.61,656.25,1.13764027]
[1750150732278,2.8484114,656.6,656.25,1.13764027]
[1750150732475,0.99665777,656.59,656.25,1.13764027]
[1750150732676,0.99665777,656.58,656.25,1.13764027]
[1750150732975,0.99665777,656.57,656.25,1.13764027]
[1750150733178,0.99665777,656.56,656.25,1.13764027]
[1750150733380,2.84877814,656.73,656.25,1.13764027]
[1750150733576,0.99665777,656.72,656.19,0.941]
[1750150733879,0.99665777,656.71,656.27,1.13764027]
[1750150734079,0.30450206,656.81,656.19,0.941]
[1750150734080,0.99665777,656.7,656.31,1.13764027]
[1750150734277,0.99665777,656.69,656.32,1.13764027]
[1750150734577,0.99665777,656.68,656.35,1.13764027]
[1750150734777,2.84914677,656.76,656.35,1.13764027]
[1750150735076,2.84914677,656.75,656.35,1.13764027]
[1750150735377,0.99665777,656.74,656.35,1.13764027]
[1750150735579,0.99665777,656.73,656.35,1.13764027]
[1750150735883,0.99665777,656.72,656.36,1.13764027]
[1750150736076,0.30450206,656.81,656.28,0.95]
[1750150736077,0.99665777,656.71,656.37,1.13764027]
[1750150736281,0.99665777,656.7,656.37,1.13764027]
[1750150736476,0.99665777,656.69,656.36,1.13764027]
[1750150736781,0.99665777,656.8,656.37,1.13764027]
[1750150736982,0.99665777,656.79,656.37,1.13764027]
[1750150737181,0.99665777,656.78,656.37,1.13764027]
[1750150737382,0.99665777,656.77,656.37,1.13764027]
[1750150737579,0.99665777,656.76,656.36,1.13764027]
[1750150737878,0.99665777,656.75,656.37,1.13764027]
[1750150738083,0.30450206,656.81,656.36,1.13764027]
[1750150738084,0.99665777,656.74,656.36,1.13764027]
[1750150738280,0.99665777,656.73,656.36,1.13764027]
[1750150738481,0.99665777,656.72,656.36,1.13764027]
[1750150738682,0.99665777,656.71,656.36,1.13764027]
[1750150738882,0.99665777,656.77,656.36,1.13764027]
[1750150739077,0.99665777,656.76,656.36,1.13764027]
[1750150739278,0.99665777,656.75,656.37,1.053]
[1750150739584,0.99665777,656.74,656.37,1.053]
[1750150739781,0.99665777,656.73,656.37,1.053]
[1750150739984,0.99665777,656.72,656.37,1.053]
[1750150740285,0.99665777,656.8,656.37,2.19064027]
[1750150740487,0.99665777,656.79,656.37,2.19064027]
[1750150740783,0.99665777,656.78,656.37,2.19064027]
[1750150740983,0.30450206,656.81,656.37,2.19064027]
[1750150740984,0.99665777,656.77,656.37,2.19064027]
[1750150741186,0.99665777,656.76,656.37,1.053]
[1750150741383,0.99665777,656.75,656.37,1.053]
[1750150741580,0.30450206,656.81,656.37,1.053]
[1750150741581,0.9964893,656.74,656.37,1.053]
[1750150741784,0.9964893,656.73,656.37,1.053]
[1750150742085,2.84799328,656.79,656.37,1.053]
[1750150742282,2.84799328,656.78,656.37,1.053]
[1750150742483,2.84799328,656.77,656.37,1.053]
[1750150742682,0.9964893,656.76,656.37,1.053]
[1750150742986,0.9964893,656.75,656.37,1.053]
[1750150743181,0.9964893,656.8,656.37,1.053]
[1750150743483,0.9964893,656.79,656.38,1.088]
[1750150743680,0.9964893,656.78,656.38,1.088]
[1750150743883,0.9964893,656.77,656.38,1.088]
[1750150744083,0.9964893,656.76,656.38,1.088]
[1750150744283,0.9964893,656.75,656.38,1.088]
[1750150744483,0.9964893,656.8,656.38,1.088]
[1750150744691,0.9964893,656.79,656.38,1.088]
[1750150744984,0.9964893,656.78,656.38,1.088]
[1750150745182,0.9964893,656.77,656.38,1.088]
[1750150745386,0.9964893,656.76,656.38,1.088]
[1750150745583,0.30450206,656.81,656.38,1.088]
[1750150745584,0.9964893,656.8,656.38,1.088]
[1750150745783,0.9964893,656.79,656.38,1.088]
[1750150746081,0.9964893,656.78,656.38,1.088]
[1750150746289,0.9964893,656.77,656.38,1.088]
[1750150746489,0.9964893,656.8,656.38,1.088]
[1750150746694,0.9964893,656.79,656.38,1.088]
[1750150746890,0.9964893,656.78,656.38,1.088]
[1750150747190,0.99633879,656.8,656.38,1.088]
[1750150747392,0.99633879,656.79,656.38,1.088]
[1750150747594,0.99633879,656.8,656.38,1.088]
[1750150747792,0.30450206,656.81,656.38,1.088]
[1750150747793,0.99633879,656.79,656.38,1.088]
[1750150747993,0.99633879,656.8,656.38,1.088]
[1750150748317,0.30450206,656.81,656.38,1.088]
[1750150748592,0.99633879,656.8,656.38,1.088]
[1750150749197,0.30450206,656.81,656.38,1.088]
[1750150751495,0.99509159,656.8,656.38,1.088]
[1750150751699,0.99506418,656.8,656.38,1.088]
[1750150752297,0.30450206,656.81,656.38,1.088]
[1750150752596,3.14908057,656.81,656.38,1.088]
[1750150752900,0.99506418,656.8,656.38,1.088]
[1750150753098,0.30450206,656.81,656.38,1.088]
[1750150755802,0.30450206,656.81,656.37,1.053]
[1750150757505,0.30450206,656.81,656.38,0.882]
[1750150758498,0.30450206,656.81,656.39,0.915]
[1750150769403,0.30450206,656.81,656.4,1.13764027]
[1750150769611,0.30450206,656.81,656.45,1.13764027]
[1750150769906,0.99471784,657.3,656.45,1.13764027]
[1750150770105,0.99471784,657.29,656.48,1.13764027]
[1750150770309,0.99471784,657.28,656.46,1.13764027]
[1750150770511,0.99471784,657.27,656.46,1.13764027]
[1750150770707,0.99471784,657.26,656.47,1.768]
[1750150770909,0.99471784,657.25,656.47,1.768]
[1750150771112,0.99471784,657.24,656.47,1.768]
[1750150771318,0.99471784,657.23,656.47,1.768]
[1750150771512,0.99471784,657.22,656.47,1.768]
[1750150771708,2.84366135,657.23,656.47,1.768]
[1750150772012,2.84366135,657.22,656.47,1.768]
[1750150772212,2.84366135,657.21,656.47,1.768]
[1750150772406,2.84366135,657.2,656.47,1.768]
[1750150772608,2.84366135,657.19,656.47,1.768]
[1750150772808,2.84366135,657.18,656.47,1.768]
[1750150773010,2.84253417,657.17,656.47,1.768]
[1750150773207,2.84253417,657.16,656.47,1.768]
[1750150773514,0.99471784,657.15,656.47,1.768]
[1750150773812,2.83990513,657.33,656.47,1.768]
[1750150774008,1.55280973,657.32,656.47,1.768]
[1750150774212,0.99471784,657.31,656.47,1.768]
[1750150774413,0.99471784,657.3,656.47,1.768]
[1750150774712,0.99471784,657.29,656.47,1.768]
[1750150774913,0.99471784,657.28,656.47,1.768]
[1750150775108,0.99471784,657.27,656.47,1.768]
[1750150775309,0.99471784,657.26,656.47,1.768]
[1750150775609,0.99471784,657.25,656.47,1.768]
[1750150775814,0.99210163,657.24,656.47,1.768]
[1750150776015,0.99210163,657.23,656.47,1.768]
[1750150776214,0.99210397,657.22,656.47,1.768]
[1750150776414,2.83617704,657.24,656.47,1.768]
[1750150776708,1.13015024,657.37,656.47,1.768]
[1750150776709,1.54986134,657.23,656.47,1.768]
[1750150776909,1.84348777,657.36,656.47,1.768]
[1750150777214,0.99211597,657.35,656.47,1.768]
[1750150777409,0.99211597,657.34,656.47,1.768]
[1750150777608,0.99211597,657.33,656.47,1.768]
[1750150777811,0.99211597,657.32,656.47,1.768]
[1750150778112,0.26493595,656.94,656.47,1.768]
[1750150783016,0.26493595,656.94,656.48,1.164]
[1750150785418,0.26493595,656.94,656.49,1.142]
[1750150788832,0.26493595,656.94,656.5,0.923]
[1750150803746,0.26493595,656.94,656.51,1.099]
[1750150808544,0.26493595,656.94,656.52,1.183]
[1750150826558,0.26493595,656.94,656.54,1.13447521]
[1750150826958,0.26493595,656.94,656.53,1.13447521]
[1750150827160,0.99242646,656.93,656.55,1.13447521]
[1750150827759,1.81762172,656.94,656.54,1.13447521]
[1750150827959,0.26493595,656.94,656.54,1.13447521]
[1750150828160,0.99242646,656.93,656.55,1.13447521]
[1750150828457,0.99242646,656.92,656.59,1.13447521]
[1750150828760,0.99242646,656.93,656.57,1.13447521]
[1750150829560,0.99242646,656.92,656.57,1.13447521]
[1750150829760,0.99242646,656.93,656.57,1.13447521]
[1750150830255,0.26493595,656.94,656.55,1.13447521]
[1750150830457,3.10653001,656.94,656.54,1.13447521]
[1750150830661,2.84159406,656.93,656.55,1.13447521]
[1750150830965,0.99242646,656.93,656.54,1.13447521]
[1750150831260,0.26493595,656.94,656.53,1.13447521]
[1750150831769,0.26493595,656.94,656.55,1.13447521]
[1750150832557,0.99242646,656.93,656.55,1.13447521]
[1750150832757,0.99368279,656.93,656.55,1.13447521]
[1750150832962,0.99368279,656.93,656.56,1.13447521]
[1750150833556,0.26493595,656.94,656.56,1.13447521]
[1750150833760,3.1083065,656.94,656.54,1.13447521]
[1750150833958,1.55465135,656.93,656.54,1.13447521]
[1750150834263,0.26493595,656.94,656.52,1.183]
[1750150836059,0.99343819,656.93,656.52,1.183]
[1750150836264,0.26493595,656.94,656.52,1.183]
[1750150836858,3.10757719,656.94,656.52,1.183]
[1750150837056,0.99343819,656.93,656.52,1.183]
[1750150837261,0.26493595,656.94,656.52,1.183]
[1750150838264,0.26493595,656.94,656.52,2.31747521]
[1750150838866,0.26493595,656.94,656.53,1.13447521]
[1750150840663,0.26493595,656.94,656.55,1.13447521]
[1750150840866,0.26493595,656.94,656.54,1.13447521]
[1750150841165,0.26493595,656.94,656.52,2.31747521]
[1750150842086,0.26493595,656.94,656.53,1.13447521]
[1750150842368,0.26493595,656.94,656.52,1.183]
[1750150842762,0.26493595,656.94,656.52,2.31747521]
[1750150844064,1.2596577,656.94,656.52,2.31747521]
[1750150844268,0.26493595,656.94,656.52,2.31747521]
[1750150845569,0.26493595,656.94,656.53,1.13447521]
[1750150846372,0.26493595,656.94,656.55,1.13447521]
[1750150846772,1.82106596,656.94,656.55,1.13447521]
[1750150846973,0.26493595,656.94,656.55,1.13447521]
[1750150847772,0.99490414,656.93,656.57,1.13447521]
[1750150848076,0.99490414,656.93,656.56,1.13447521]
[1750150849322,0.26493595,656.94,656.55,1.13447521]
[1750150849867,1.82108397,656.94,656.55,1.13447521]
[1750150850071,0.26493595,656.94,656.55,1.13447521]
[1750150850271,0.99490414,656.93,656.58,1.13447521]
[1750150850468,0.99490414,656.92,656.58,1.13447521]
[1750150850668,0.26493595,656.94,656.54,1.13447521]
[1750150852269,0.26493595,656.94,656.55,1.13447521]
[1750150852469,1.25984009,656.94,656.55,1.13447521]
[1750150852673,0.26493595,656.94,656.55,1.13447521]
[1750150853272,0.26493595,656.94,656.54,1.13447521]
[1750150854074,0.26493595,656.94,656.52,1.13447521]
[1750150855371,0.26493595,656.94,656.53,1.13447521]
[1750150855576,0.26493595,656.94,656.54,1.13447521]
[1750150856677,0.26493595,656.94,656.53,1.13447521]
[1750150857780,1.25990268,656.94,656.53,1.13447521]
[1750150858078,0.26493595,656.94,656.53,1.13447521]
[1750150858680,0.26493595,656.94,656.52,1.13447521]
[1750150859888,0.26493595,656.94,656.53,1.13447521]
[1750150860486,0.26493595,656.94,656.51,2.12347521]
[1750150860685,0.26493595,656.94,656.52,1.13447521]
[1750150862485,0.26493595,656.94,656.51,2.12347521]
[1750150862987,0.26493595,656.94,656.52,1.13447521]
[1750150864095,0.26493595,656.94,656.53,1.13447521]
[1750150865283,0.26493595,656.94,656.54,1.13447521]
[1750150865486,0.99512028,657.01,656.51,2.12347521]
[1750150865791,0.26495512,657.01,656.53,1.13447521]
[1750150866385,0.26495512,657.01,656.54,1.13447521]
[1750150867484,0.26495512,657.01,656.53,1.13447521]
[1750150867685,0.26495512,657.01,656.61,1.13447521]
[1750150868586,0.26495512,657.01,656.62,1.13447521]
[1750150868888,0.26495512,657.01,656.61,1.13447521]
[1750150869491,0.26495512,657.01,656.6,1.13447521]
[1750150869690,0.26495512,657.01,656.65,1.13447521]
[1750150869887,0.26495512,657.01,656.67,1.13447521]
[1750150870190,0.26495512,657.01,656.65,1.13447521]
[1750150870485,0.26495512,657.01,656.64,1.13447521]
[1750150871484,0.26495512,657.01,656.61,1.13447521]
[1750150872293,0.26495512,657.01,656.59,1.13447521]
[1750150872990,0.26495512,657.01,656.58,1.13447521]
[1750150873686,0.26495512,657.01,656.56,1.13447521]
[1750150874088,0.26495512,657.01,656.57,1.13447521]
[1750150874488,0.26495512,657.01,656.56,1.13447521]
[1750150876888,0.26495512,657.01,656.54,1.13447521]
[1750150877491,0.26495512,657.01,656.51,2.12347521]
[1750150877692,0.26495512,657.01,656.51,0.989]
[1750150881090,0.26495512,657.01,656.52,1.158]
[1750150897507,1.26172627,657.01,656.52,1.158]
[1750150897709,0.26495512,657.01,656.52,1.158]
[1750150902025,1.26240995,657.01,656.52,1.158]
[1750150902218,0.26495512,657.01,656.52,1.158]
[1750150902419,0.99745483,657.0,656.52,1.158]
[1750150902623,0.99745483,656.99,656.52,2.29736764]
[1750150902820,0.99745483,657.0,656.52,2.29736764]
[1750150903020,0.99745483,657.0,656.51,2.12836764]
[1750150903220,0.99745483,656.99,656.51,2.12836764]
[1750150903423,0.99745483,657.0,656.52,1.13936764]
[1750150903723,0.99745483,656.99,656.52,1.13936764]
[1750150904023,0.99745483,657.0,656.52,1.13936764]
[1750150904521,0.26495512,657.01,656.51,0.989]
[1750150904921,0.26495512,657.01,656.47,1.13936764]
[1750150905826,0.26495512,657.01,656.46,1.13936764]
[1750150906127,0.26495512,657.01,656.47,0.981]
[1750150907222,0.26495512,657.01,656.47,2.12036764]
[1750150907828,0.26495512,657.01,656.47,0.981]
[1750150908128,0.26495512,657.01,656.48,1.197]
[1750150910230,0.26495512,657.01,656.48,2.33636764]
[1750150910827,0.26495512,657.01,656.49,1.13936764]
[1750150911129,0.26495512,657.01,656.51,1.13936764]
[1750150911329,0.26495512,657.01,656.48,1.197]
[1750150911330,0.26495512,657.01,656.53,1.13936764]
[1750150911730,0.26495512,657.01,656.49,1.13936764]
[1750150911930,0.26495512,657.01,656.48,2.33636764]
[1750150913031,0.26495512,657.01,656.49,1.13936764]
[1750150913229,0.26495512,657.01,656.48,2.33636764]
[1750150913426,0.26495512,657.01,656.49,1.13936764]